fUSD/lending_fUSD_20250814
["ID","MTS","AMOUNT","RATE_DAILY","PERIOD"]
[379178716,1755178440224,-1005.8,0.00027397,2]
[379178717,1755178440246,-630.75,0.00027397,2]
[379178718,1755178440268,-6931.11,0.00027397,2]
[379178719,1755178440617,-400.0,0.00027397,2]
[379178720,1755178440675,-2060.69,0.00027397,2]
[379178721,1755178440698,-400.0,0.00027397,2]
[379178722,1755178440720,-10343.72,0.00027397,2]
[379178723,1755178440741,-1275.76,0.00027397,2]
[379178724,1755178440763,-850.95,0.00027397,2]
[379178725,1755178440784,-348.68,0.00027397,2]
[379178726,1755178440806,-2379.53,0.00027397,2]
[379178727,1755178440828,-400.0,0.00027397,2]
[379178728,1755178440850,-4489.33,0.00027397,2]
[379178729,1755178440873,-17037.25,0.00027397,2]
[379178730,1755178440904,-7214.55,0.00027397,2]
[379178731,1755178440925,-400.0,0.00027397,2]
[379178732,1755178440949,-9159.76,0.00027397,2]
[379178733,1755178440971,-825.61,0.00027397,2]
[379178734,1755178440994,-3641.45,0.00027397,2]
[379178735,1755178441017,-3186.67,0.00027397,2]
[379178736,1755178441045,-5392.13,0.00027397,2]
[379178737,1755178441068,-1166.5,0.00027397,2]
[379178738,1755178441090,-4121.5,0.00027397,2]
[379178739,1755178441116,-400.0,0.00027397,2]
[379178740,1755178441138,-400.0,0.00027397,2]
[379178741,1755178441162,-400.0,0.00027397,2]
[379178742,1755178441183,-1586.59,0.00027397,2]
[379178743,1755178441203,-4108.67,0.00027397,2]
[379178744,1755178441225,-500.0,0.00027397,2]
[379178745,1755178441246,-3316.97,0.00027397,2]
[379178746,1755178441268,-2808.27,0.00027397,2]
[379178747,1755178441289,-400.0,0.00027397,2]
[379178748,1755178441309,-693.14,0.00027397,2]
[379178749,1755178441331,-20135.96,0.00027397,2]
[379178750,1755178441352,-400.0,0.00027397,2]
[379178751,1755178441372,-400.0,0.00027397,2]
[379178752,1755178441398,-4123.16,0.00027397,2]
[379178753,1755178441418,-400.0,0.00027397,2]
[379178754,1755178441439,-2132.09,0.00027397,2]
[379178755,1755178441461,-2563.68,0.00027397,2]
[379178756,1755178441483,-1955.92,0.00027397,2]
[379178757,1755178441504,-4124.89,0.00027397,2]
[379178758,1755178441525,-4954.76,0.00027397,2]
[379178759,1755178441546,-4049.21,0.00027397,2]
[379178760,1755178441566,-783.68,0.00027397,2]
[379178761,1755178441586,-400.0,0.00027397,2]
[379178762,1755178441606,-582.15,0.00027397,2]
[379178763,1755178441626,-400.0,0.00027397,2]
[379178764,1755178441652,-6964.51,0.00027397,2]
[379178765,1755178441674,-7140.33,0.00027397,2]
[379178766,1755178441694,-400.0,0.00027397,2]
[379178767,1755178441715,-400.0,0.00027397,2]
[379178768,1755178441736,-5745.54,0.00027397,2]
[379178769,1755178441759,-9453.21,0.00027397,2]
[379178770,1755178441780,-400.0,0.00027397,2]
[379178771,1755178441801,-400.0,0.00027397,2]
[379178772,1755178441822,-3212.19,0.00027397,2]
[379178773,1755178441844,-400.0,0.00027397,2]
[379178774,1755178441865,-5710.74,0.00027397,2]
[379178775,1755178441886,-528.00649945,0.00027397,2]
[379178776,1755178441911,-1065.0,0.00027397,2]
[379178777,1755178441932,-500.0,0.00027397,2]
[379178778,1755178441953,-1120.15,0.00027397,2]
[379178779,1755178441974,-500.0,0.00027397,2]
[379178780,1755178441994,-400.0,0.00027397,2]
[379178781,1755178442018,-500.0,0.00027397,2]
[379178782,1755178442039,-2823.67,0.00027397,2]
[379178783,1755178442061,-3472.98,0.00027397,2]
[379178784,1755178442082,-7866.38,0.00027397,2]
[379178785,1755178442104,-400.0,0.00027397,2]
[379178786,1755178442125,-723.26,0.00027397,2]
[379178787,1755178442151,-6987.36,0.00027397,2]
[379178788,1755178442191,-501.28,0.00027397,2]
[379178789,1755178442213,-3015.59,0.00027397,2]
[379178790,1755178442234,-400.0,0.00027397,2]
[379178791,1755178442255,-400.0,0.00027397,2]
[379178792,1755178442277,-204.224554,0.00027397,7]
[379178793,1755178442298,-204.224554,0.00027397,7]
[379178794,1755178442318,-3146.42,0.00027397,2]
[379178795,1755178442339,-5804.41,0.00027397,2]
[379178796,1755178442361,-1269.88,0.00027397,2]
[379178797,1755178442382,-204.224554,0.00027397,7]
[379178798,1755178442407,-5193.5,0.00027397,2]
[379178799,1755178442428,-204.224554,0.00027397,7]
[379178800,1755178442450,-4881.11,0.00027397,2]
[379178801,1755178442472,-457.82,0.00027397,2]
[379178802,1755178442499,-400.0,0.00027397,2]
[379178803,1755178442520,-400.0,0.00027397,2]
[379178804,1755178442542,-400.0,0.00027397,2]
[379178805,1755178442565,-3152.85,0.00027397,2]
[379178806,1755178442586,-441.22,0.00027397,2]
[379178807,1755178442607,-400.0,0.00027397,2]
[379178808,1755178442628,-997.95,0.00027397,2]
[379178809,1755178442654,-400.0,0.00027397,2]
[379178810,1755178442676,-1688.13,0.00027397,2]
[379178811,1755178442698,-2577.842514,0.00027397,7]
[379178812,1755178442719,-400.0,0.00027397,2]
[379178813,1755178442741,-2577.842514,0.00027397,7]
[379178814,1755178442762,-400.0,0.00027397,2]
[379178815,1755178442783,-1143.34,0.00027397,2]
[379178816,1755178442806,-400.0,0.00027397,2]
[379178817,1755178442828,-1147.28,0.00027397,2]
[379178818,1755178442849,-4850.37,0.00027397,2]
[379178819,1755178442871,-400.0,0.00027397,2]
[379178820,1755178442897,-2577.842514,0.00027397,7]
[379178821,1755178442926,-2577.842514,0.00027397,7]
[379178822,1755178442957,-400.0,0.00027397,2]
[379178823,1755178442983,-400.0,0.00027397,2]
[379178824,1755178443004,-400.0,0.00027397,2]
[379178825,1755178443037,-1684.94,0.00027397,2]
[379178826,1755178443060,-400.0,0.00027397,2]
[379178827,1755178443082,-400.0,0.00027397,2]
[379178828,1755178443104,-400.0,0.00027397,2]
[379178829,1755178443125,-400.0,0.00027397,2]
[379178830,1755178443151,-400.0,0.00027397,2]
[379178831,1755178443172,-792.07,0.00027397,2]
[379178832,1755178443194,-400.0,0.00027397,2]
[379178833,1755178443215,-400.0,0.00027397,2]
[379178834,1755178443236,-1912.64,0.00027397,2]
[379178835,1755178443259,-400.0,0.00027397,2]
[379178836,1755178443280,-400.0,0.00027397,2]
[379178837,1755178443304,-400.0,0.00027397,2]
[379178838,1755178443330,-400.0,0.00027397,2]
[379178839,1755178443355,-4229.98,0.00027397,2]
[379178840,1755178443379,-9203.33,0.00027397,2]
[379178841,1755178443411,-3701.93,0.00027397,2]
[379178842,1755178443434,-452.47,0.00027397,2]
[379178843,1755178443457,-1424.52,0.00027397,2]
[379178844,1755178443480,-514.55,0.00027397,2]
[379178845,1755178443502,-7973.8,0.00027397,2]
[379178846,1755178443525,-400.0,0.00027397,2]
[379178847,1755178443546,-3979.01,0.00027397,2]
[379178848,1755178443567,-7498.7,0.00027397,2]
[379178849,1755178443588,-957.3,0.00027397,2]
[379178850,1755178443610,-6588.2,0.00027397,2]
[379178851,1755178443634,-400.0,0.00027397,2]
[379178852,1755178443661,-4240.11,0.00027397,2]
[379178853,1755178443683,-1124.73,0.00027397,2]
[379178854,1755178443706,-2763.55,0.00027397,2]
[379178855,1755178443730,-1775.54,0.00027397,2]
[379178856,1755178443755,-1168.41,0.00027397,2]
[379178857,1755178443778,-3996.75,0.00027397,2]
[379178858,1755178443801,-9577.13,0.00027397,2]
[379178859,1755178443831,-6645.48,0.00027397,2]
[379178860,1755178443854,-2510.43,0.00027397,2]
[379178861,1755178443876,-400.0,0.00027397,2]
[379178862,1755178443902,-541.386306,0.00027397,7]
[379178863,1755178443926,-541.386306,0.00027397,7]
[379178864,1755178443949,-3253.5,0.00027397,2]
[379178865,1755178443972,-400.0,0.00027397,2]
[379178866,1755178443996,-400.0,0.00027397,2]
[379178867,1755178444022,-541.386306,0.00027397,7]
[379178868,1755178444044,-541.386306,0.00027397,7]
[379178869,1755178444068,-731.0,0.00027397,2]
[379178870,1755178444091,-793.19,0.00027397,2]
[379178871,1755178444115,-400.0,0.00027397,2]
[379178872,1755178444137,-522.39,0.00027397,2]
[379178873,1755178444164,-3776.97,0.00027397,2]
[379178874,1755178444186,-400.0,0.00027397,2]
[379178875,1755178444208,-3544.75,0.00027397,2]
[379178876,1755178444232,-2845.83,0.00027397,2]
[379178877,1755178444254,-3552.48,0.00027397,2]
[379178878,1755178444276,-4068.87,0.00027397,2]
[379178879,1755178444299,-7721.41,0.00027397,2]
[379178880,1755178444320,-400.0,0.00027397,2]
[379178881,1755178444342,-400.0,0.00027397,2]
[379178882,1755178444365,-400.0,0.00027397,2]
[379178883,1755178444388,-400.0,0.00027397,2]
[379178884,1755178444416,-400.0,0.00027397,2]
[379178885,1755178444439,-7359.22,0.00027397,2]
[379178886,1755178444462,-2080.43,0.00027397,2]
[379178887,1755178444483,-7680.71,0.00027397,2]
[379178888,1755178444504,-2716.41,0.00027397,2]
[379178889,1755178444526,-852.62,0.00027397,2]
[379178890,1755178444547,-3540.49,0.00027397,2]
[379178891,1755178444567,-400.0,0.00027397,2]
[379178892,1755178444588,-400.0,0.00027397,2]
[379178893,1755178444609,-499.09,0.00027397,2]
[379178894,1755178444629,-1896.12,0.00027397,2]
[379178895,1755178444653,-544.4,0.00027397,7]
[379178896,1755178444674,-4508.1,0.00027397,2]
[379178897,1755178444695,-4337.66,0.00027397,2]
[379178898,1755178444717,-400.0,0.00027397,2]
[379178899,1755178444739,-400.0,0.00027397,2]
[379178900,1755178444761,-401.12,0.00027397,2]
[379178901,1755178445085,-265.07,0.00027397,80]
[379178902,1755178445120,-1000.0,0.00027397,7]
[379178903,1755178445142,-1000.0,0.00027397,7]
[379178904,1755178445167,-670.0,0.00027397,7]
[379178905,1755178445190,-600.0,0.000274,10]
[379178906,1755178445212,-3797.81662808,0.000274,2]
[379178907,1755178445235,-166.54331091,0.000274,2]
[379178908,1755178445256,-166.54331091,0.000274,2]
[379178909,1755178445279,-8120.60396406,0.00027419,2]
[379178910,1755178445301,-1198.329,0.00027423,16]
[379178911,1755178445324,-672.13090193,0.00027434,2]
[379178912,1755178445348,-895.41552627,0.00027436,2]
[379178913,1755178445371,-8450.16407893,0.0002747,2]
[379178914,1755178445393,-8120.60396406,0.0002748,2]
[379178915,1755178445419,-900.0,0.000275,10]
[379178916,1755178445441,-500.0,0.00027511,2]
[379178917,1755178445465,-8450.16407893,0.00027511,2]
[379178918,1755178445489,-31521.59187533,0.00027512,2]
[379178919,1755178458010,-300.0,0.00020899,2]
[379178922,1755178472987,-302.73,0.00022137,2]
[379178923,1755178473025,-291.7,0.00024971,2]
[379178924,1755178473382,-11.14,0.00024971,2]
[379178925,1755178494850,-500.0,0.000189,2]
[379178926,1755178494872,-505.0,0.00021,2]
[379178927,1755178494894,-505.0,0.00021819,2]
[379178928,1755178494915,-505.0,0.00022639,3]
[379178929,1755178494938,-505.0,0.00023458,4]
[379178930,1755178494959,-505.0,0.00024278,5]
[379178931,1755178494986,-505.0,0.00025097,6]
[379178932,1755178495007,-302.31,0.00025246,2]
[379178933,1755178495029,-1709.02,0.00025534,2]
[379178934,1755178495050,-150.0,0.00025534,2]
[379178935,1755178495071,-505.0,0.00025917,6]
[379178936,1755178495091,-1000.0,0.00026502,2]
[379178937,1755178495112,-500.0,0.0002662,2]
[379178938,1755178495133,-356.35691579,0.0002662,2]
[379178939,1755178495152,-269.41666539,0.0002662,2]
[379178940,1755178495172,-500.0,0.0002662,2]
[379178941,1755178495195,-500.0,0.0002662,2]
[379178942,1755178495214,-500.0,0.0002662,2]
[379178943,1755178495234,-269.19374001,0.0002662,2]
[379178944,1755178495254,-500.0,0.0002662,2]
[379178945,1755178495273,-469.67504346,0.0002662,2]
[379178946,1755178495294,-500.0,0.0002662,2]
[379178947,1755178495314,-500.0,0.0002662,2]
[379178948,1755178495333,-500.0,0.0002662,2]
[379178949,1755178495353,-204.02035863,0.0002662,2]
[379178950,1755178495375,-505.0,0.00026736,7]
[379178951,1755178495395,-1000.0,0.00026759,2]
[379178952,1755178495416,-211.86673127,0.00027,3]
[379178953,1755178495439,-351.44,0.00027387,3]
[379178954,1755178495460,-500.0,0.00027396,2]
[379178955,1755178495480,-279.77077112,0.00027396,2]
[379178956,1755178495501,-213.27910929,0.00027396,2]
[379178957,1755178495521,-400.0,0.00027397,2]
[379178958,1755178495540,-400.0,0.00027397,2]
[379178959,1755178495560,-627.33,0.00027397,2]
[379178960,1755178495580,-14294.62,0.00027397,2]
[379178961,1755178495601,-400.0,0.00027397,2]
[379178962,1755178495623,-400.0,0.00027397,2]
[379178963,1755178495645,-12941.32,0.00027397,2]
[379178964,1755178495666,-404.53,0.00027397,2]
[379178965,1755178495689,-400.0,0.00027397,2]
[379178966,1755178495709,-400.0,0.00027397,2]
[379178967,1755178495730,-400.0,0.00027397,2]
[379178968,1755178495752,-400.0,0.00027397,2]
[379178969,1755178495773,-400.0,0.00027397,2]
[379178970,1755178495795,-647.28,0.00027397,2]
[379178971,1755178495816,-400.0,0.00027397,2]
[379178972,1755178495836,-1975.175147,0.00027397,7]
[379178973,1755178495856,-647.28,0.00027397,2]
[379178974,1755178495876,-1975.175147,0.00027397,7]
[379178975,1755178495896,-647.28,0.00027397,2]
[379178976,1755178495916,-647.28,0.00027397,2]
[379178977,1755178495938,-647.28,0.00027397,2]
[379178978,1755178495958,-469.25,0.00027397,2]
[379178979,1755178495978,-647.28,0.00027397,2]
[379178980,1755178495998,-647.28,0.00027397,2]
[379178981,1755178496488,-647.28,0.00027397,2]
[379178982,1755178496509,-1290.51,0.00027397,2]
[379178983,1755178496531,-13599.16,0.00027397,2]
[379178984,1755178496557,-400.0,0.00027397,2]
[379178985,1755178496577,-400.0,0.00027397,2]
[379178986,1755178496597,-400.0,0.00027397,2]
[379178987,1755178496618,-11865.3,0.00027397,2]
[379178988,1755178496638,-400.0,0.00027397,2]
[379178989,1755178496658,-2979.84,0.00027397,2]
[379178990,1755178496678,-2263.82,0.00027397,2]
[379178991,1755178496699,-402.54,0.00027397,2]
[379178992,1755178496721,-12560.4,0.00027397,2]
[379178993,1755178496742,-1162.64,0.00027397,2]
[379178994,1755178496762,-400.0,0.00027397,2]
[379178995,1755178496782,-959.6,0.00027397,2]
[379178996,1755178496802,-1515.1,0.00027397,2]
[379178997,1755178496821,-400.0,0.00027397,2]
[379178998,1755178496841,-1803.93,0.00027397,2]
[379178999,1755178496862,-1041.4,0.00027397,2]
[379179000,1755178496884,-1975.175147,0.00027397,7]
[379179001,1755178496909,-1975.175147,0.00027397,7]
[379179002,1755178496934,-400.0,0.00027397,2]
[379179003,1755178496958,-4010.94,0.00027397,2]
[379179004,1755178496978,-2974.53,0.00027397,2]
[379179005,1755178496999,-4010.94,0.00027397,2]
[379179006,1755178497019,-498.74,0.00027397,2]
[379179007,1755178497043,-4010.94,0.00027397,2]
[379179008,1755178497062,-6603.7,0.00027397,2]
[379179009,1755178497083,-4010.94,0.00027397,2]
[379179010,1755178497103,-3565.69,0.00027397,2]
[379179011,1755178497126,-4010.94,0.00027397,2]
[379179012,1755178497148,-4010.94,0.00027397,2]
[379179013,1755178497168,-400.0,0.00027397,2]
[379179014,1755178497192,-4010.94,0.00027397,2]
[379179015,1755178497213,-400.0,0.00027397,2]
[379179016,1755178497234,-4010.94,0.00027397,2]
[379179017,1755178497256,-4010.94,0.00027397,2]
[379179018,1755178497277,-500.0,0.00027397,2]
[379179019,1755178497298,-7305.39,0.00027397,2]
[379179020,1755178497318,-2069.53,0.00027397,2]
[379179021,1755178497339,-2886.17,0.00027397,2]
[379179022,1755178497359,-2858.62,0.00027397,2]
[379179023,1755178497381,-12169.76,0.00027397,2]
[379179024,1755178497402,-6694.75,0.00027397,2]
[379179025,1755178497422,-447.0,0.00027397,2]
[379179026,1755178497444,-1785.91,0.00027397,2]
[379179027,1755178497466,-400.0,0.00027397,2]
[379179028,1755178497487,-400.0,0.00027397,2]
[379179029,1755178497508,-471.72,0.00027397,2]
[379179030,1755178497528,-5447.58,0.00027397,2]
[379179031,1755178497548,-400.0,0.00027397,2]
[379179032,1755178497567,-400.0,0.00027397,2]
[379179033,1755178497588,-400.0,0.00027397,2]
[379179034,1755178497608,-6662.62,0.00027397,2]
[379179035,1755178497628,-400.0,0.00027397,2]
[379179036,1755178497648,-448.83,0.00027397,2]
[379179037,1755178497668,-400.0,0.00027397,2]
[379179038,1755178497691,-3322.32,0.00027397,2]
[379179039,1755178497711,-5405.76,0.00027397,2]
[379179040,1755178497732,-5732.38,0.00027397,2]
[379179041,1755178497752,-4766.4,0.00027397,2]
[379179042,1755178497775,-2768.86,0.00027397,2]
[379179043,1755178497797,-3223.26,0.00027397,2]
[379179044,1755178497819,-3963.09,0.00027397,2]
[379179045,1755178497840,-400.0,0.00027397,2]
[379179046,1755178497861,-1719.6,0.00027397,2]
[379179047,1755178497882,-1094.42,0.00027397,2]
[379179048,1755178497902,-400.0,0.00027397,2]
[379179049,1755178497922,-4245.01,0.00027397,2]
[379179050,1755178497943,-400.0,0.00027397,2]
[379179051,1755178497964,-2168.3,0.00027397,2]
[379179052,1755178497985,-5428.92,0.00027397,2]
[379179053,1755178498006,-1520.06,0.00027397,2]
[379179054,1755178498030,-1520.06,0.00027397,2]
[379179055,1755178498054,-1520.06,0.00027397,2]
[379179056,1755178498076,-7933.63,0.00027397,2]
[379179057,1755178498097,-6642.31,0.00027397,2]
[379179058,1755178498119,-400.0,0.00027397,2]
[379179059,1755178498139,-921.5,0.00027397,2]
[379179060,1755178498159,-6769.77,0.00027397,2]
[379179062,1755178498179,-553.96,0.00027397,2]
[379179063,1755178498202,-6319.34,0.00027397,2]
[379179064,1755178498222,-515.42,0.00027397,2]
[379179065,1755178498243,-2578.57,0.00027397,2]
[379179066,1755178498263,-5991.22,0.00027397,2]
[379179067,1755178498283,-15025.38998403,0.000275,8]
[379179068,1755178498304,-1520.06,0.00027511,2]
[379179069,1755178498326,-19179.39259827,0.00027512,2]
[379179070,1755178498347,-549.63,0.00027512,2]
[379179071,1755178498367,-839.07991641,0.00027514,2]
[379179072,1755178498388,-4010.94,0.0002752,2]
[379179073,1755178498408,-4010.94,0.0002752,2]
[379179074,1755178498429,-549.63,0.00027521,2]
[379179075,1755178498452,-500.0,0.00027521,2]
[379179076,1755178498474,-204.224554,0.00027521,7]
[379179077,1755178498495,-204.224554,0.00027521,7]
[379179078,1755178498517,-541.386306,0.00027521,7]
[379179079,1755178498538,-541.386306,0.00027521,7]
[379179080,1755178498558,-647.28,0.00027521,2]
[379179081,1755178498578,-647.28,0.00027521,2]
[379179082,1755178498600,-4010.94,0.00027521,2]
[379179083,1755178498622,-1520.06,0.00027521,2]
[379179084,1755178498643,-400.0,0.00027522,2]
[379179085,1755178498663,-400.0,0.00027522,2]
[379179086,1755178498683,-400.0,0.00027522,2]
[379179087,1755178498706,-179.474086,0.00027522,7]
[379179088,1755178498727,-400.0,0.00027522,2]
[379179089,1755178498748,-507.38,0.00027522,2]
[379179090,1755178498769,-400.0,0.00027522,2]
[379179091,1755178498790,-179.474086,0.00027522,7]
[379179092,1755178498812,-400.0,0.00027522,2]
[379179093,1755178498831,-400.0,0.00027522,2]
[379179094,1755178498853,-759.25,0.00027522,2]
[379179095,1755178498874,-400.0,0.00027522,2]
[379179096,1755178498895,-549.63,0.00027522,2]
[379179097,1755178498915,-400.0,0.00027522,2]
[379179098,1755178498936,-428.27678997,0.00027522,2]
[379179099,1755178498962,-449.59,0.00027522,2]
[379179100,1755178498984,-400.0,0.00027522,2]
[379179101,1755178499005,-400.0,0.00027522,2]
[379179102,1755178499035,-400.0,0.00027522,2]
[379179103,1755178499056,-400.0,0.00027522,2]
[379179104,1755178499078,-400.0,0.00027522,2]
[379179105,1755178499099,-2787.34,0.00027522,2]
[379179106,1755178499121,-400.0,0.00027522,2]
[379179107,1755178499143,-400.0,0.00027522,2]
[379179108,1755178499165,-1038.67,0.00027522,2]
[379179109,1755178499185,-400.0,0.00027522,2]
[379179110,1755178499207,-411.33,0.00027522,2]
[379179111,1755178499228,-400.0,0.00027522,2]
[379179112,1755178499249,-400.0,0.00027522,2]
[379179113,1755178499270,-400.0,0.00027522,2]
[379179114,1755178499291,-400.0,0.00027522,2]
[379179115,1755178499312,-2600.71,0.00027522,2]
[379179116,1755178499334,-2148.42,0.00027522,2]
[379179117,1755178499355,-2242.13,0.00027522,2]
[379179118,1755178499376,-342.553234,0.00027522,7]
[379179119,1755178499396,-400.0,0.00027522,2]
[379179120,1755178499417,-1185.0,0.00027522,2]
[379179121,1755178499438,-1484.48,0.00027522,2]
[379179122,1755178499459,-342.553234,0.00027522,7]
[379179123,1755178499480,-434.64,0.00027522,2]
[379179124,1755178499503,-42684.27,0.00027522,2]
[379179125,1755178499524,-596.18,0.00027522,2]
[379179126,1755178499545,-888.4,0.00027522,2]
[379179127,1755178499565,-400.0,0.00027522,2]
[379179128,1755178499586,-400.0,0.00027522,2]
[379179129,1755178499606,-400.0,0.00027522,2]
[379179130,1755178499626,-243.282301,0.00027522,7]
[379179131,1755178499647,-441.88,0.00027522,2]
[379179132,1755178499668,-243.282301,0.00027522,7]
[379179133,1755178499690,-400.0,0.00027522,2]
[379179134,1755178499715,-400.0,0.00027522,2]
[379179135,1755178499736,-487.3,0.00027522,2]
[379179136,1755178499756,-1021.21,0.00027522,2]
[379179137,1755178499778,-500.0,0.00027522,2]
[379179138,1755178499799,-400.0,0.00027522,2]
[379179139,1755178499819,-400.0,0.00027522,2]
[379179140,1755178499840,-400.0,0.00027522,2]
[379179141,1755178499861,-417.87,0.00027522,2]
[379179142,1755178499882,-400.0,0.00027522,2]
[379179143,1755178499903,-2062.28,0.00027522,2]
[379179144,1755178499924,-400.0,0.00027522,2]
[379179145,1755178499948,-1730.34,0.00027522,2]
[379179146,1755178499969,-6641.52,0.00027522,2]
[379179147,1755178499990,-400.0,0.00027522,2]
[379179148,1755178500011,-400.0,0.00027522,2]
[379179149,1755178500032,-655.38,0.00027522,2]
[379179150,1755178500056,-499.21,0.00027522,2]
[379179151,1755178500078,-2267.88,0.00027522,2]
[379179152,1755178500100,-500.0,0.00027522,2]
[379179153,1755178500122,-1653.51,0.00027522,2]
[379179154,1755178500143,-757.67,0.00027522,2]
[379179155,1755178500165,-685.29,0.00027522,2]
[379179156,1755178500186,-7211.36,0.00027522,2]
[379179157,1755178500212,-1745.91,0.00027522,2]
[379179158,1755178500233,-684.64,0.00027522,2]
[379179159,1755178500255,-400.0,0.00027522,2]
[379179160,1755178500276,-400.0,0.00027522,2]
[379179161,1755178500576,-400.0,0.00027522,2]
[379179162,1755178500646,-11771.65,0.00027522,2]
[379179163,1755178500668,-400.0,0.00027522,2]
[379179164,1755178500691,-1479.15,0.00027522,2]
[379179165,1755178500718,-476.64,0.00027522,2]
[379179166,1755178500739,-400.0,0.00027522,2]
[379179167,1755178500760,-567.19,0.00027522,2]
[379179168,1755178500781,-400.0,0.00027522,2]
[379179169,1755178500806,-400.0,0.00027522,2]
[379179170,1755178500827,-400.0,0.00027522,2]
[379179171,1755178500847,-1310.56,0.00027522,2]
[379179172,1755178500868,-400.0,0.00027522,2]
[379179173,1755178500889,-472.59,0.00027522,2]
[379179174,1755178500912,-7477.13,0.00027522,2]
[379179175,1755178500933,-400.0,0.00027522,2]
[379179176,1755178500958,-1274.07,0.00027522,2]
[379179177,1755178500980,-3167.2,0.00027522,2]
[379179178,1755178501001,-400.0,0.00027522,2]
[379179179,1755178501022,-400.0,0.00027522,2]
[379179180,1755178501046,-400.0,0.00027522,2]
[379179181,1755178501067,-567.29,0.00027522,2]
[379179182,1755178501092,-400.0,0.00027522,2]
[379179183,1755178501118,-15918.97,0.00027522,2]
[379179184,1755178501147,-2102.65,0.00027522,2]
[379179185,1755178501170,-400.0,0.00027522,2]
[379179186,1755178501198,-591.34,0.00027522,2]
[379179187,1755178501222,-400.0,0.00027522,2]
[379179188,1755178501243,-400.0,0.00027522,2]
[379179189,1755178501264,-400.0,0.00027522,2]
[379179190,1755178501285,-400.0,0.00027522,2]
[379179191,1755178501307,-552.97,0.00027522,2]
[379179192,1755178501328,-1382.33,0.00027522,2]
[379179193,1755178501350,-1975.175147,0.00027522,7]
[379179194,1755178501371,-8762.9,0.00027522,2]
[379179195,1755178501391,-507.13,0.00027522,2]
[379179196,1755178501412,-400.0,0.00027522,2]
[379179197,1755178501432,-400.0,0.00027522,2]
[379179198,1755178501458,-1211.04,0.00027522,2]
[379179199,1755178501481,-1788.62,0.00027522,2]
[379179200,1755178501502,-408.04,0.00027522,2]
[379179201,1755178501524,-1975.175147,0.00027522,7]
[379179202,1755178501545,-1567.86,0.00027522,2]
[379179203,1755178501567,-715.64,0.00027522,2]
[379179204,1755178501588,-3514.02,0.00027522,2]
[379179205,1755178501609,-400.0,0.00027522,2]
[379179206,1755178501630,-4010.94,0.00027522,2]
[379179207,1755178501652,-2202.71,0.00027522,2]
[379179208,1755178501673,-2643.78,0.00027522,2]
[379179209,1755178501700,-400.0,0.00027522,2]
[379179210,1755178501722,-525.46,0.00027522,2]
[379179211,1755178501744,-400.0,0.00027522,2]
[379179212,1755178501766,-6712.84,0.00027522,2]
[379179213,1755178501788,-400.0,0.00027522,2]
[379179214,1755178501810,-914.08,0.00027522,2]
[379179215,1755178501831,-400.0,0.00027522,2]
[379179216,1755178501852,-962.9,0.00027522,2]
[379179217,1755178501873,-400.0,0.00027522,2]
[379179218,1755178501896,-5584.95,0.00027522,2]